Cogmind - Beta 13 @@@ ROGUE MODE // 2024.03.22 @ 09:42:50 Player: Julie Result: Destroyed by H-61 Shepherd with Heavy Assault Cannon Performance ------------- Evolutions (2) 1000 Regions Visited (4) 800 Robots Destroyed (25) 125 Value Destroyed (847) 847 Prototype IDs (0) 0 Alien Tech Used (0) 0 Bonus (0) 0 TOTAL SCORE: 2772 Bonus ------- None Cogmind --------- Core Integrity 0/550 Matter 287/300 Energy 100/100 System Corruption 0% Temperature Cool (9) Movement Core (200) Ox3 Location -8/Materials Parts ------- > --- POWER (1) -------- (None) > --- PROPULSION (5) --- (None) > --- UTILITY (3) ------ Medium Storage Unit > --- WEAPON (2) ------- (None) > --- INVENTORY (10) --- Light Treads High-capacity Storage Unit Large Battery (200) Medium Matter Pod (38) Advanced Weight Redist. System Light Armor Plating Shock Trap Peak State ------------ > --- POWER ------------ Improved Ion Engine > --- PROPULSION ------- Aluminum Leg Aluminum Leg Aluminum Leg Aluminum Leg Aluminum Leg > --- UTILITY ---------- Medium Storage Unit Targeting Computer Utility Shielding > --- WEAPON ----------- Particle Cannon Rocket Launcher > --- INVENTORY -------- Ion Engine Light Treads High-capacity Storage Unit Large Battery Medium Matter Pod Advanced Weight Redist. System Light Armor Plating EM Shotgun Assault Rifle Shock Trap [Rating: 15] Favorites ----------- Power Light Ion Engine Engine Light Ion Engine Propulsion Aluminum Leg Leg Aluminum Leg Utility Medium Storage Unit Device Sensor Array Storage Medium Storage Unit Processor Targeting Computer Protection Utility Shielding Weapon Particle Cannon Energy Gun EM Shotgun Energy Cannon Particle Cannon Ballistic Gun Assault Rifle Launcher Grenade Launcher Build | -11 -10 -9 -9 -8 ------- Run | Yrd Mat Mat Min Mat Slots Evolved 4 | . . 2 . 2 Power . | . . . . . Propulsion 3 | . . 2 . 1 Utility 1 | . . . . 1 Weapon . | . . . . . Parts Attached 32 | 8 2 9 3 10 Power 5 | 3 . 1 . 1 Engine 5 | 3 . 1 . 1 Core . | . . . . . Reactor . | . . . . . Propulsion 11 | 2 . 4 1 4 Treads . | . . . . . Leg 11 | 2 . 4 1 4 Wheel . | . . . . . Hover . | . . . . . Flight . | . . . . . Utility 5 | 1 1 2 . 1 Device 1 | . 1 . . . Storage 2 | 1 . 1 . . Processor 1 | . . 1 . . Hackware . | . . . . . Protection 1 | . . . . 1 Artifact . | . . . . . Weapon 11 | 2 1 2 2 4 Energy Gun 4 | 2 . . 1 1 Energy Cannon 2 | . . 1 . 1 Ballistic Gun 1 | . . . . 1 Ballistic Cannon . | . . . . . Launcher 4 | . 1 1 1 1 Special Weapon . | . . . . . Impact Weapon . | . . . . . Slashing Weapon . | . . . . . Piercing Weapon . | . . . . . Special Melee Weapon . | . . . . . Unidentified Prototypes . | . . . . . Parts Lost 20 | . . 2 2 16 Power 2 | . . . . 2 Propulsion 10 | . . 1 1 8 Utility 3 | . . 1 . 2 Weapon 5 | . . . 1 4 Highest Loss Streak 16 | . . 1 2 16 To Critical Strikes . | . . . . . Average Slot Usage (%) 92 | . 97 87 99 73 Engine 11 | . 14 11 11 6 Leg 35 | . 28 33 43 33 Device 5 | . 11 9 . . Storage 11 | . 14 11 11 9 Processor 5 | . . 1 11 6 Energy Gun 9 | . 15 3 10 3 Energy Cannon 5 | . . 7 8 3 Launcher 7 | . 12 10 2 5 Naked Turns . | . . . . . Heaviest Build 26 | 11 14 25 24 26 Greatest Support 50 | 20 20 40 40 50 Greatest Overweight (x) 3 | . . 1 . 3 Average Overweight (x) . | . . . . . Largest Inventory Capacity 10 | 8 8 10 10 10 Average Capacity 9 | 7 8 9 10 10 Most Carried 10 | 4 8 10 10 10 Average Carried 8 | 2 6 9 9 8 Final Capacity 10 | 8 8 10 10 10 Final Carried 10 | 4 8 10 10 7 Class Distribution -------------------- 58% | Mutant 41% | Scavenger-Mutant Dominant Class ---------------- Mutant | -10/Materials Mutant | -9/Materials Scavenger-Mutant | -9/Mines Scavenger-Mutant | -8/Materials Resources | -11 -10 -9 -9 -8 ----------- Run | Yrd Mat Mat Min Mat Matter Collected 805 | 241 41 319 57 147 Remotely . | . . . . . Salvage Created 847 | . 53 407 41 346 Parts 47 | . 8 23 1 15 Haulers Intercepted . | . . . . . Recyclers Shooed . | . . . . . Parts Field Recycled . | . . . . . Retrieved Matter . | . . . . . Parts Self-Destructed . | . . . . . Prevented . | . . . . . Kills | -11 -10 -9 -9 -8 ------- Run | Yrd Mat Mat Min Mat Combat Hostiles Destroyed 17 | . 1 9 2 5 Guns 1 | . . 1 . . Cannons 9 | . . 5 2 2 AOE 7 | . 1 3 . 3 Classes Destroyed 6 | . 2 4 . . Worker 1 | . . 1 . . Recycler 3 | . . 1 . 2 Watcher 4 | . 2 1 . 1 Grunt 12 | . 1 5 2 4 Brawler 1 | . . 1 . . Sentry 4 | . . 3 . 1 Best Kill Streak 6 | . 3 5 2 6 Combat Bots Only 4 | . 1 3 2 4 Max Kills in Single Turn 4 | . 1 2 1 4 Gunslinging . | . . . . . Exploded 2 | . 1 1 . 2 Melee . | . . . . . Uniques/NPCs Destroyed . | . . . . . Combat | -11 -10 -9 -9 -8 -------- Run | Yrd Mat Mat Min Mat Hostile Shots Fired 125 | . 6 33 12 74 Missed 19 | . . 7 2 10 Damage Taken 2354 | . 76 456 139 1683 Core 668 | . 10 75 11 572 Absorbed by Shields . | . . . . . Redirected to Shielding 55 | . . . . 55 Regen/Repaired (Parts) 44 | . . 44 . . Core Remaining (%) 91 | 100 96 . 78 . Volleys Fired 51 | . 6 21 5 19 Largest 2 | . 2 2 2 2 Hottest 113 | . 80 98 113 113 Shots Fired 80 | . 10 37 9 24 Gun 21 | . 6 6 1 8 Cannon 25 | . . 15 5 5 Launcher 34 | . 4 16 3 11 Special . | . . . . . Kinetic 3 | . . . . 3 Thermal 37 | . 6 21 5 5 Explosive 34 | . 4 16 3 11 Electromagnetic 6 | . . . 1 5 Robot Hit Streak 10 | . 5 9 5 10 Robot Miss Streak 3 | . 1 2 1 3 Penetration Max . | . . . . . Secondary Targets . | . . . . . Shots Hit Robots 59 | . 7 26 7 19 Core Hits 46 | . 4 20 4 18 Critical Kills . | . . . . . Critical Parts Destroyed . | . . . . . Critical Strikes . | . . . . . Melee Attacks . | . . . . . Impact . | . . . . . Slashing . | . . . . . Piercing . | . . . . . Sneak Attacks . | . . . . . Combat Hostiles . | . . . . . Follow-up Attacks . | . . . . . Damage Inflicted 1984 | . 196 748 323 717 Guns 232 | . 51 62 . 119 Cannons 410 | . . 225 82 103 Explosions 1342 | . 145 461 241 495 Melee . | . . . . . Ramming . | . . . . . Kinetic 29 | . . . . 29 Thermal 523 | . 51 287 82 103 Explosive 1342 | . 145 461 241 495 Electromagnetic 90 | . . . . 90 Impact . | . . . . . Slashing . | . . . . . Piercing . | . . . . . Highest Corruption . | . . . . . Average Corruption . | . . . . . Corruption Purged . | . . . . . Corruption Blocked . | . . . . . Overload Shots . | . . . . . Overflow Damage 31 | . . 11 . 20 Projectiles 3 | . . 3 . . Explosions 28 | . . 8 . 20 Melee . | . . . . . Knockbacks . | . . . . . Impact . | . . . . . Kinetic . | . . . . . Secondary . | . . . . . Self-Inflicted Damage 183 | . 13 115 14 41 Shots 9 | . 1 5 2 1 Rammed . | . . . . . Targets Rammed . | . . . . . Kicked . | . . . . . Crushed . | . . . . . Highest Temperature 279 | . 74 192 206 279 Average Temperature 81 | . 35 59 108 146 Received Heat Transfer 621 | . 36 138 69 378 Siege Activations . | . . . . . Robots Corrupted . | . . . . . Combat Hostiles . | . . . . . Parts Fried . | . . . . . Impact Corruptions . | . . . . . Robots Melted . | . . . . . Combat Hostiles . | . . . . . Parts Melted . | . . . . . Heat Transferred 1073 | . 148 592 148 185 Parts Sabotaged . | . . . . . Parts Stolen . | . . . . . Parts Stripped . | . . . . . Power Chain Reactions . | . . . . . Alert | -11 -10 -9 -9 -8 ------- Run | Yrd Mat Mat Min Mat Peak Influence 313 | . 101 313 151 161 Initial 97 | . . . 97 . Average 93 | . 79 134 90 74 Maximum Alert Level 1 | . . 1 . . Low Security (%) 95 | 100 100 84 100 100 Level 1 4 | . . 15 . . Level 2 . | . . . . . Level 3 . | . . . . . Level 4 . | . . . . . Level 5 . | . . . . . High Security . | . . . . . Max Security . | . . . . . Squads Dispatched 4 | . 1 1 . 2 Investigation 1 | . . 1 . . Extermination . | . . . . . Reinforcement 3 | . 1 . . 2 Assault . | . . . . . Garrison . | . . . . . Intercept . | . . . . . Searches Triggered . | . . . . . Construction Impeded 1 | . . . . 1 Haulers Reinforced . | . . . . . Active Scanning Responses . | . . . . . Cargo Convoy Interrupts . | . . . . . Stealth | -11 -10 -9 -9 -8 --------- Run | Yrd Mat Mat Min Mat Distress Signals 5 | . 1 1 . 3 Communications Jammed . | . . . . . Distress Signals . | . . . . . Times Spotted 35 | . 3 16 2 14 Peak Tracking Total 8 | . 3 4 2 8 Tactical Retreats 1 | . . . . 1 Traps | -11 -10 -9 -9 -8 ------- Run | Yrd Mat Mat Min Mat Traps Triggered 1 | . . 1 . . Indirectly . | . . . . . Trap Hack Attempts . | . . . . . Triggered . | . . . . . Disarmed . | . . . . . Reprogrammed . | . . . . . Reused . | . . . . . Traps Extracted . | . . . . . Installed . | . . . . . Triggered . | . . . . . Most Traps Carried 2 | . . . 2 1 Machines | -11 -10 -9 -9 -8 ---------- Run | Yrd Mat Mat Min Mat Machines Disabled 6 | . 1 4 . 1 Max in Single Turn 1 | . 1 1 . 1 Machines Repaired . | . . . . . Machines Dismantled . | . . . . . Machines Sabotaged . | . . . . . Overloaded Fab Kills . | . . . . . Hacking | -11 -10 -9 -9 -8 --------- Run | Yrd Mat Mat Min Mat Machines Accessed 7 | . 1 4 2 . Terminals 5 | . . 3 2 . Fabricators . | . . . . . Repair Stations 1 | . . 1 . . Recycling Units 1 | . 1 . . . Scanalyzers . | . . . . . Garrison Access . | . . . . . Total Hacks 10 | . 1 6 3 . Successful 5 | . . 4 1 . Failed 5 | . 1 2 2 . Catastrophic . | . . . . . Database Lockouts . | . . . . . Manual 2 | . . 1 1 . Terminals 7 | . . 4 3 . Fabricators . | . . . . . Repair Stations 2 | . . 2 . . Recycling Units 1 | . 1 . . . Scanalyzers . | . . . . . Garrison Access . | . . . . . Terminal Hacks 3 | . . 2 1 . Record 2 | . . 1 1 . Zone Layout 1 | . . 1 . . Fabricator Hacks . | . . . . . Repair Station Hacks 2 | . . 2 . . Scan Component 1 | . . 1 . . Repair 1 | . . 1 . . Recycling Unit Hacks . | . . . . . Scanalyzer . | . . . . . Garrison Access Hacks . | . . . . . Unauthorized Hacks . | . . . . . Terminals . | . . . . . Fabricators . | . . . . . Repair Stations . | . . . . . Recycling Units . | . . . . . Scanalyzers . | . . . . . Garrison Access . | . . . . . Data Cores Recovered . | . . . . . Used . | . . . . . Hacking Detections . | . . . . . Full Trace Events . | . . . . . Feedback Events . | . . . . . Feedback Blocked . | . . . . . Robot Schematics Acquired . | . . . . . Robots Built . | . . . . . Authchips . | . . . . . Time . | . . . . . Total Robot Build Rating . | . . . . . Part Schematics Acquired . | . . . . . Parts Built . | . . . . . Authchips . | . . . . . Time . | . . . . . Total Part Build Rating . | . . . . . Parts Repaired 1 | . . 1 . . Time 26 | . . 26 . . Parts Recycled . | . . . . . Recycled Matter . | . . . . . Retrieved Matter . | . . . . . Retrieved Components . | . . . . . Parts Scanalyzed . | . . . . . Part Schematics Acquired . | . . . . . Parts Damaged . | . . . . . Bothacking | -11 -10 -9 -9 -8 ------------ Run | Yrd Mat Mat Min Mat Used RIF Installer . | . . . . . Robots Hacked . | . . . . . Non-combat . | . . . . . Combat . | . . . . . Robot Hacks Applied . | . . . . . Relay Couplers Released . | . . . . . Fabnet Peak Effective % . | . . . . . Robots Rewired . | . . . . . Allies Hacked . | . . . . . Hacks Repelled . | . . . . . Allies | -11 -10 -9 -9 -8 -------- Run | Yrd Mat Mat Min Mat Total Allies . | . . . . . Largest Group . | . . . . . Highest-Rated Group . | . . . . . Highest-Rated Ally . | . . . . . Total Orders . | . . . . . Ally Attacks . | . . . . . Total Damage . | . . . . . Kills . | . . . . . Allies Corrupted . | . . . . . Allies Melted . | . . . . . Intel | -11 -10 -9 -9 -8 ------- Run | Yrd Mat Mat Min Mat Robot Analysis Total . | . . . . . Derelict Logs Recovered 1 | . . . 1 . Drone Launches . | . . . . . Drone Recoveries . | . . . . . Exploration | -11 -10 -9 -9 -8 ------------- Run | Yrd Mat Mat Min Mat Turns Passed 1922 | 109 438 526 661 188 Spaces Moved 1235 | 67 237 317 521 93 Core 19 | 8 . . . 11 Treads . | . . . . . Legs 1216 | 59 237 317 521 82 Wheels . | . . . . . Hover . | . . . . . Flight . | . . . . . Fastest Speed 50 | 50 120 120 120 120 Average Speed 120 | 111 120 121 120 130 Slowest Speed 200 | 120 120 190 120 200 Overloaded Moves . | . . . . . Propulsion Burnouts . | . . . . . Robots Hopped . | . . . . . Cave-ins Triggered . | . . . . . Exploration Rate (%) 33 | 5 40 29 80 11 Regions Visited 4 Branch Regions 1 Pre-discovered Areas 1 | . . . 1 . Known Exits Taken . | . . . . . Unknown Exits Taken 4 | 1 1 1 1 . Scrap Searched 1 | . . . 1 . Spaces Dug . | . . . . . Terrain Destroyed 185 | . 22 91 21 51 Melee . | . . . . . Projectile 2 | . . 1 1 . AOE 183 | . 22 90 20 51 Terrain Rammed . | . . . . . Walls Destroyed . | . . . . . Machines Disabled . | . . . . . Actions | -11 -10 -9 -9 -8 --------- Run | Yrd Mat Mat Min Mat Total 1577 | 97 381 420 548 131 Wait 227 | 20 126 60 13 8 Move 1231 | 66 236 316 520 93 Hop . | . . . . . Pick Up 24 | 3 8 8 4 1 Fast Attach 16 | 6 . 5 1 4 Attach 9 | . 1 3 1 4 Detach . | . . . . . Swap 7 | 2 1 1 1 2 Drop 12 | . 3 6 3 . Fire 51 | . 6 21 5 19 Melee . | . . . . . Ram . | . . . . . Kick . | . . . . . Crush . | . . . . . Escape Stasis . | . . . . . Rewire . | . . . . . Trap . | . . . . . Miscellaneous . | . . . . . Route ------- -11/Scrapyard -10/Materials (discovered 2 exits: *Mat / [*Min]) -9/Materials -9/Mines (discovered 2 exits: [*Mat x2]) -8/Materials History --------- Turn | Location | Event 4 | -11/Scrapyard | Discovered new exit (range 15) 110 | -11/Scrapyard | Entered Materials 257 | -10/Materials | Discovered new exit (range 6) 306 | -10/Materials | Build established: Mutant 429 | -10/Materials | Discovered new exit (range 3) 548 | -10/Materials | Entered another Materials area 548 | -9/Materials | Evolved 2 slots: Propulsion x2 895 | -9/Materials | Repaired Grenade Launcher 977 | -9/Materials | Discovered new exit (range 16) 1074 | -9/Materials | Entered Mines 1307 | -9/Mines | Learned location of Storage (-7) 1318 | -9/Mines | Found a hidden stash of uninstalled traps 1349 | -9/Mines | Discovered new exit (range 3) 1378 | -9/Mines | Build established: Scavenger-Mutant 1575 | -9/Mines | Received a Rocket Launcher from a helpful Derelict 1592 | -9/Mines | Discovered new exit (range 8) 1735 | -9/Mines | Entered Materials 1735 | -8/Materials | Evolved 2 slots: Propulsion x1, Utility x1 1894 | -8/Materials | Core integrity fell below 50% 1919 | -8/Materials | Core integrity fell below 20% 1923 | -8/Materials | Destroyed by H-61 Shepherd with Heavy Assault Cannon Last Messages --------------- 01896_ U-05 Engineer lays Concrete. 01901_ Acquired Aluminum Leg. 01901_ Aluminum Leg destroyed. 01901_ Knocked back. 01901_ U-05 Engineer lays Concrete. 01902_ U-05 Engineer builds a Wall. 01904_ Acquired 4 matter. 01906_ U-05 Engineer destroyed. 01906_ U-05 Engineer lays Concrete. 01906_ Aluminum Leg destroyed. 01906_ Knocked back. 01908_ Acquired 4 matter. 01912_ W-25 Informer sends out distress signal. 01912_ Acquired 1 matter. 01913_ U-05 Engineer builds a Wall. 01918_ Penetrated by Slug. 01918_ Utility Shielding destroyed. 01918_ Knocked back. 01922_ U-05 Engineer builds a Wall. 01923_ Penetrated by Slug. Map ----- +----------------------------------------------------+ | ???????? ???????????????????????????????????? | | ???????? ????????????????????????????????????? | | ???????? ????????????????????????????????????? | | ????????# #????????????????????????????????????? | | ????????# #????????????????????????????????????? | | ????????# #????????????????????????????????????? | | ????????+ ###########??????????????????????????? | | ????????# # #??????????????????????????? | | ????????# # #??????????????????????????? | | ????##### # #??????????????????????????? | | ????# # """ """ #??????????????????????????? | | ????# + """ """ #??????????????????????????? | | ????# # """ """ #??????????????????????????? | | ??####### # #??????????????????????????? | | ?# ""??# # #??????????????????????????? | | ?# "Y" # ###########??????????????????????????? | | ?#= " " + #????????????????????????????????????? | | ?# # #????????????????????????????????????? | | ?# ??# ############?????????????????????????? | | ?# ????# ## #?????###?????????????????? | | ?#??????# ## ! #########?????????????????? | | ????????# ## ## """u#?????????????????? | | ????????# ## ## " " #?????????????????? | | ???????## ## ##% " " #?????????????????? | | ???????# # #; *g!###???????????????? | | ???????# # ##@ %=g|# #???????????????? | | ??????## ## ##%%=gH=###???????????????? | | ??????# ###+#############u#######???????????? | | ??????# !%%!! ????????? | | ??????# % *= ????????? | | ??????# ???????? | | ??????## ### ###+############# #????????? | | ???????#######?## ## #?#???????? #????????? | | ????????????????### ##??????????? #????????? | | ??????????????????### ! #?????????????????????? | | ????????????????????# ##?????????????????????? | | ????????????????????# #??????????????????????? | | ????????????????????# #??????????????????????? | | ????????????????????# #??????????????????????? | | ????????????????????#######??????????????????????? | | ?????????????????????????????????????????????????? | | ?????????????????????????????????????????????????? | | ?????????????????????????????????????????????????? | | ?????????????????????????????????????????????????? | | ?????????????????????????????????????????????????? | | ?????????????????????????????????????????????????? | | ?????????????????????????????????????????????????? | | ?????????????????????????????????????????????????? | | ?????????????????????????????????????????????????? | | ?????????????????????????????????????????????????? | +----------------------------------------------------+ Best States ------------- Heat Dissipation 31 Energy Generation 12 Energy Capacity 265 Matter Stores 300 Matter Capacity 300 Sight Range 16 Robot Scan Range 14 Terrain Scan Density 10 Utility Shielding 33 Evasion (%) 55 Targeting Accuracy 5 Item Schematics ----------------- None Robot Schematics ------------------ None Fabricated ------------ Nothing Alien Tech Used ----------------- None Achievements -------------- None Challenges ------------ None Game ------ Seed AdvancedAlphaFrame Manual? 0 Play Time 00:22:07 Cumulative 11.1 hours Start 2024.03.22 @ 09:23:39 End 2024.03.22 @ 09:42:50 Sessions 1 Manual Loads 0 Difficulty Rogue Special Mode None Game No. 33 Rogue 33 Adventurer 0 Explorer 0 Win Type - Total 0 Types 0/0/0/0/0/0/0/0/0 Lore% 6 Gallery% 18 Achievement% 12 Wizard Run 0 Options --------- Layout 1 ASCII 0 Keyboard 1 Movement Numpad Keybinds 0 Fullscreen 2 Font 24/Terminus Map View 50x35 Zoom Use 0% Tactical HUD 1 Map Filters NONE Filters NONE Steam 1 RUN: 0fc050f9-66eb-46ea-9870-91ea912f810e